[Event "69th RUS-ch Women Higher League 2019"]
[Site "Yaroslavl"]
[Date "2019.06.28"]
[Round "2.5"]
[White "Tomilova, Elena"]
[Black "Voit, Daria"]
[Result "1-0"]
[ECO "A46"]
[WhiteElo "2289"]
[BlackElo "2339"]
[Annotator "NA"]
[PlyCount "119"]
[EventDate "2019.06.27"]
[EventType "swiss"]
[EventCountry "RUS"]
[SourceTitle "playchess.com"]
[Source "ChessBase"]
[SourceQuality "1"]
[TimeControl "40/5400+30:1800+30"]

1. d4 {[%emt 0:00:00]} Nf6 {[%emt 0:01:19]} 2. Nf3 {[%emt 0:00:00]} e6 {[%emt 0:00:33]} 3. Bf4 {[%emt 0:00:00]} c5 {[%emt 0:00:32]} 4. e3 {[%emt 0:00:00]} Nc6 {[%emt 0:00:23]} 5. c3 {[%emt 0:00:11]} Nh5 {[%emt 0:04:08]} 6. Bg5 {[%emt 0:01:06]} Qb6 {[%emt 0:00:04]} 7. Nfd2 {[%emt 0:20:53]} Qxb2 {[%emt 0:28:07]} 8. Nb3 {[%emt 0:19:55]} Nf6 {[%emt 0:00:15]} 9. Bxf6 {[%emt 0:00:21]} gxf6 {[%emt 0:00:06]} 10. Bd3 {[%emt 0:08:02]} b6 {[%emt 0:18:47]} 11. O-O {[%emt 0:17:24]} Na5 {[%emt 0:09:54]} 12. Nxa5 {[%emt 0:04:40]} bxa5 {[%emt 0:00:40]} 13. Nd2 {[%emt 0:00:49]} cxd4 {[%emt 0:16:45]} 14. cxd4 {[%emt 0:01:24]} Qb6 {[%emt 0:01:53]} 15. Rb1 {[%emt 0:01:30]} Qc7 {[%emt 0:00:20]} 16. Qf3 {[%emt 0:05:38]} Rb8 {[%emt 0:00:31]} 17. Rxb8 {[%emt 0:00:16]} Qxb8 {[%emt 0:00:02]} 18. Rb1 {[%emt 0:00:18]} Qc7 {[%emt 0:00:32]} 19. Qxf6 {[%emt 0:01:12]} Rg8 {[%emt 0:00:04]} 20. Bxh7 {[%emt 0:01:20]} Be7 {[%emt 0:01:15]} 21. Qh6 {[%emt 0:01:34]} Bf8 {[%emt 0:02:15]} 22. Qh5 {[%emt 0:01:46]} Rg7 {[%emt 0:00:54]} 23. Be4 {[%emt 0:01:46]} Ba6 {[%emt 0:02:07]} 24. Qe5 {[%emt 0:03:03]} d6 {[%emt 0:01:01]} 25. Qf6 {[%emt 0:00:21]} d5 {[%emt 0:00:28]} 26. Bf3 {[%emt 0:02:57]} Bd3 {[%emt 0:02:17]} 27. Bd1 {[%emt 0:01:07]} Bb4 {[%emt 0:04:04]} 28. Qxg7 {[%emt 0:02:06]} Bxb1 {[%emt 0:00:04]} 29. Qg8+ {[%emt 0:02:53]} Ke7 {[%emt 0:01:24]} 30. Nxb1 {[%emt 0:01:21]} Qc1 {[%emt 0:00:03]} 31. Qg4 {[%emt 0:00:12]} Qxb1 {[%emt 0:00:24]} 32. a4 {[%emt 0:00:32]} Bd6 {[%emt 0:01:10]} 33. g3 {[%emt 0:00:29]} Qg6 {[%emt 0:00:43]} 34. Qe2 {[%emt 0:00:14]} Qb1 {[%emt 0:00:24]} 35. Kg2 {[%emt 0:00:20]} Kf8 {[%emt 0:00:15]} 36. Bc2 {[%emt 0:00:21]} Qb2 {[%emt 0:00:29]} 37. Qd3 {[%emt 0:01:09]} Bb4 {[%emt 0:00:24]} 38. Qh7 {[%emt 0:00:33]} Be1 {[%emt 0:01:31]} 39. Qd3 {[%emt 0:01:02]} Qc3 {[%emt 0:00:23]} 40. Qe2 {[%emt 0:00:00]} Qd2 {[%emt 0:00:00]} 41. Qxd2 {[%emt 0:01:05]} Bxd2 {[%emt 0:00:12]} 42. g4 {[%emt 0:01:38]} Kg7 {[%emt 0:00:26]} 43. Kf3 {[%emt 0:01:22]} Kh6 {[%emt 0:10:10]} 44. h4 {[%emt 0:03:05]} Bb4 {[%emt 0:04:46]} 45. Bd3 {[%emt 0:01:03]} Be7 {[%emt 0:00:31]} 46. Kg3 {[%emt 0:00:52]} Bd6+ {[%emt 0:00:36]} 47. f4 {[%emt 0:00:48]} Bb4 {[%emt 0:00:36]} 48. g5+ {[%emt 0:00:33]} Kg7 {[%emt 0:01:35]} 49. h5 {[%emt 0:00:43]} Kg8 {[%emt 0:04:50]} 50. Bb5 {[%emt 0:01:06]} Bf8 {[%emt 0:00:11]} 51. Be8 {[%emt 0:00:56]} Bg7 {[%emt 0:00:13]} 52. h6 {[%emt 0:00:44]} Bh8 {[%emt 0:00:23]} 53. Bd7 {[%emt 0:00:46]} Kf8 {[%emt 0:03:02]} 54. Kg4 {[%emt 0:00:17]} Ke7 {[%emt 0:00:15]} 55. Bc8 {[%emt 0:00:40]} Kf8 {[%emt 0:00:09]} 56. Kh5 {[%emt 0:00:13]} Kg8 {[%emt 0:00:17]} 57. Bd7 {[%emt 0:00:28]} Kf8 {[%emt 0:00:12]} 58. g6 {[%emt 0:03:54]} Bf6 {[%emt 0:00:04]} 59. g7+ {[%emt 0:00:08]} Kg8 {[%emt 0:00:02]} 60. Bxe6 {[%emt 0:00:13]} 1-0

[Event "69th RUS-ch Women Higher League 2019"]
[Site "Yaroslavl"]
[Date "2019.06.28"]
[Round "2.6"]
[White "Charochkina, Daria"]
[Black "Potapova, Margarita"]
[Result "1-0"]
[ECO "A18"]
[WhiteElo "2338"]
[BlackElo "2256"]
[Annotator "NA"]
[PlyCount "97"]
[EventDate "2019.06.27"]
[EventType "swiss"]
[EventCountry "RUS"]
[SourceTitle "playchess.com"]
[Source "ChessBase"]
[SourceQuality "1"]
[TimeControl "40/5400+30:1800+30"]

1. c4 {[%emt 0:00:00]} Nf6 {[%emt 0:00:00]} 2. Nc3 {[%emt 0:00:00]} e6 {[%emt 0:00:00]} 3. e4 {[%emt 0:00:00]} d5 {[%emt 0:00:00]} 4. e5 {[%emt 0:00:00]} d4 {[%emt 0:00:00]} 5. exf6 {[%emt 0:00:13]} dxc3 {[%emt 0:00:02]} 6. bxc3 {[%emt 0:00:07]} Qxf6 {[%emt 0:00:04]} 7. Nf3 {[%emt 0:00:09]} b6 {[%emt 0:00:51]} 8. d4 {[%emt 0:00:13]} Bb7 {[%emt 0:04:52]} 9. Bd3 {[%emt 0:00:27]} h6 {[%emt 0:01:34]} 10. O-O {[%emt 0:00:10]} Bd6 {[%emt 0:03:47]} 11. Nd2 {[%emt 0:02:24]} Qh4 {[%emt 0:07:13]} 12. g3 {[%emt 0:00:10]} Qh3 {[%emt 0:03:26]} 13. Ne4 {[%emt 0:00:30]} O-O {[%emt 0:04:05]} 14. Re1 {[%emt 0:02:26]} Nc6 {[%emt 0:13:08]} 15. Rb1 {[%emt 0:21:24]} Be7 {[%emt 0:09:19]} 16. Rb5 {[%emt 0:23:03]} e5 {[%emt 0:03:42]} 17. Bf1 {[%emt 0:06:12]} Qf5 {[%emt 0:10:03]} 18. Bd3 {[%emt 0:01:51]} Qh3 {[%emt 0:00:50]} 19. d5 {[%emt 0:13:07]} Na5 {[%emt 0:04:32]} 20. c5 {[%emt 0:01:45]} a6 {[%emt 0:07:02]} 21. Bf1 {[%emt 0:02:43]} Qf5 {[%emt 0:00:58]} 22. Rb2 {[%emt 0:01:43]} Rfd8 {[%emt 0:01:58]} 23. c4 {[%emt 0:02:28]} Qg6 {[%emt 0:08:40]} 24. Bd2 {[%emt 0:02:31]} Bc8 {[%emt 0:04:19]} 25. cxb6 {[%emt 0:02:06]} cxb6 {[%emt 0:00:29]} 26. d6 {[%emt 0:01:11]} Bf8 {[%emt 0:11:34]} 27. Rxb6 {[%emt 0:00:11]} Nb7 {[%emt 0:00:16]} 28. c5 {[%emt 0:01:19]} Bf5 {[%emt 0:00:44]} 29. Bg2 {[%emt 0:01:59]} Ra7 {[%emt 0:00:28]} 30. d7 {[%emt 0:04:28]} Be6 {[%emt 0:00:32]} 31. c6 {[%emt 0:00:08]} Nc5 {[%emt 0:00:09]} 32. Ba5 {[%emt 0:01:26]} Nxd7 {[%emt 0:00:49]} 33. cxd7 {[%emt 0:00:39]} Raxd7 {[%emt 0:00:10]} 34. Qe2 {[%emt 0:03:08]} Rd5 {[%emt 0:00:51]} 35. Rxe6 {[%emt 0:03:01]} Qxe6 {[%emt 0:00:27]} 36. Bxd8 {[%emt 0:00:03]} Rxd8 {[%emt 0:00:05]} 37. g4 {[%emt 0:01:08]} Rd4 {[%emt 0:00:08]} 38. Rb1 {[%emt 0:00:46]} g6 {[%emt 0:00:26]} 39. h3 Be7 {[%emt 0:01:17]} 40. Rb8+ {[%emt 0:00:00]} Kg7 {[%emt 0:00:00]} 41. Qb2 {[%emt 0:06:55]} f5 {[%emt 0:03:42]} 42. gxf5 {[%emt 0:03:20]} gxf5 {[%emt 0:01:11]} 43. Nc3 {[%emt 0:00:34]} Bc5 {[%emt 0:02:16]} 44. Qb7+ {[%emt 0:02:22]} Kg6 {[%emt 0:06:19]} 45. Bd5 {[%emt 0:02:52]} Qf6 {[%emt 0:01:51]} 46. Rg8+ {[%emt 0:00:34]} Kh5 {[%emt 0:00:06]} 47. Bf7+ {[%emt 0:00:03]} Kh4 {[%emt 0:00:15]} 48. Rg6 {[%emt 0:00:17]} Qe7 {[%emt 0:01:08]} 49. Qg2 {[%emt 0:00:18]} 1-0

[Event "69th RUS-ch Women Higher League 2019"]
[Site "Yaroslavl"]
[Date "2019.06.28"]
[Round "2.7"]
[White "Borisova, Ekaterina"]
[Black "Solozhenkina, Elizaveta"]
[Result "1-0"]
[ECO "E06"]
[WhiteElo "2267"]
[BlackElo "2324"]
[Annotator "NA"]
[PlyCount "119"]
[EventDate "2019.06.27"]
[EventType "swiss"]
[EventCountry "RUS"]
[SourceTitle "playchess.com"]
[Source "ChessBase"]
[SourceQuality "1"]
[TimeControl "40/5400+30:1800+30"]

1. d4 {[%emt 0:00:00]} Nf6 {[%emt 0:00:00]} 2. c4 {[%emt 0:00:00]} e6 {[%emt 0:00:00]} 3. g3 {[%emt 0:00:00]} d5 {[%emt 0:00:08]} 4. Nf3 {[%emt 0:00:00]} Be7 {[%emt 0:00:22]} 5. Bg2 {[%emt 0:00:00]} O-O {[%emt 0:00:10]} 6. O-O {[%emt 0:00:00]} dxc4 {[%emt 0:00:08]} 7. Qc2 {[%emt 0:00:00]} b5 {[%emt 0:00:15]} 8. a4 {[%emt 0:00:18]} b4 {[%emt 0:00:08]} 9. Nfd2 {[%emt 0:01:18]} c6 {[%emt 0:07:27]} 10. Nxc4 {[%emt 0:04:34]} Qxd4 {[%emt 0:01:48]} 11. Rd1 {[%emt 0:09:52]} Qc5 {[%emt 0:01:02]} 12. Be3 {[%emt 0:06:53]} Qh5 {[%emt 0:03:34]} 13. Nbd2 {[%emt 0:04:27]} e5 {[%emt 0:21:02]} 14. Nf3 {[%emt 0:09:28]} Bf5 {[%emt 0:04:43]} 15. Qc1 {[%emt 0:08:58]} e4 {[%emt 0:02:21]} 16. Nfd2 {[%emt 0:03:43]} Ng4 {[%emt 0:14:07]} 17. h4 {[%emt 0:09:20]} Qg6 {[%emt 0:03:14]} 18. Qc2 {[%emt 0:02:49]} Nd7 {[%emt 0:05:10]} 19. Bxe4 {[%emt 0:03:44]} Bxe4 {[%emt 0:06:55]} 20. Qxe4 {[%emt 0:00:44]} Nxe3 {[%emt 0:04:43]} 21. Nxe3 {[%emt 0:05:01]} Rfe8 {[%emt 0:00:25]} 22. Qxg6 {[%emt 0:10:12]} hxg6 {[%emt 0:00:08]} 23. Nb3 {[%emt 0:02:54]} Nc5 {[%emt 0:02:56]} 24. Na5 {[%emt 0:04:32]} Bf6 {[%emt 0:02:55]} 25. Nac4 {[%emt 0:05:39]} Nb3 {[%emt 0:02:51]} 26. Rab1 {[%emt 0:00:15]} Rad8 {[%emt 0:00:41]} 27. Kf1 {[%emt 0:01:45]} Bd4 {[%emt 0:04:55]} 28. Nc2 {[%emt 0:03:18]} Bc5 {[%emt 0:01:16]} 29. e3 {[%emt 0:02:02]} f6 {[%emt 0:00:21]} 30. Ke2 {[%emt 0:00:33]} Kf8 {[%emt 0:00:33]} 31. Rxd8 {[%emt 0:01:20]} Rxd8 {[%emt 0:00:01]} 32. Na1 {[%emt 0:01:21]} Nxa1 {[%emt 0:02:43]} 33. Rxa1 {[%emt 0:00:01]} Be7 {[%emt 0:02:59]} 34. Rc1 {[%emt 0:00:35]} c5 {[%emt 0:01:04]} 35. b3 {[%emt 0:01:06]} Kf7 {[%emt 0:00:27]} 36. Nb2 {[%emt 0:00:27]} f5 {[%emt 0:01:28]} 37. Nd3 {[%emt 0:00:25]} Rd5 {[%emt 0:00:03]} 38. Nf4 {[%emt 0:00:35]} Rd7 {[%emt 0:00:35]} 39. Nd3 {[%emt 0:00:33]} Rd5 {[%emt 0:00:02]} 40. Rc2 {[%emt 0:00:00]} Kf6 {[%emt 0:00:00]} 41. Nf4 {[%emt 0:04:30]} Rd7 {[%emt 0:02:48]} 42. Rd2 {[%emt 0:03:07]} Rb7 {[%emt 0:06:13]} 43. Kd3 {[%emt 0:01:15]} Rd7+ {[%emt 0:01:40]} 44. Kc2 {[%emt 0:00:05]} Rb7 {[%emt 0:00:05]} 45. Rd1 {[%emt 0:06:41]} Kf7 {[%emt 0:01:47]} 46. Nd5 {[%emt 0:01:49]} Rd7 {[%emt 0:06:19]} 47. Rd3 {[%emt 0:01:16]} Rb7 {[%emt 0:03:48]} 48. Nxe7 {[%emt 0:03:07]} Kxe7 {[%emt 0:01:05]} 49. Rd5 {[%emt 0:00:03]} c4 {[%emt 0:00:35]} 50. bxc4 {[%emt 0:00:19]} b3+ {[%emt 0:00:11]} 51. Kb2 {[%emt 0:00:04]} Rb4 {[%emt 0:01:15]} 52. Ra5 {[%emt 0:00:32]} Rxc4 {[%emt 0:02:29]} 53. Rxa7+ {[%emt 0:00:04]} Kf6 {[%emt 0:00:05]} 54. Kxb3 {[%emt 0:00:18]} Rc1 {[%emt 0:00:06]} 55. Rd7 {[%emt 0:00:44]} Rb1+ 56. Ka2 {[%emt 0:00:22]} Rf1 {[%emt 0:01:40]} 57. Rd2 {[%emt 0:00:07]} g5 {[%emt 0:00:18]} 58. hxg5+ {[%emt 0:00:18]} Kxg5 {[%emt 0:00:01]} 59. a5 {[%emt 0:00:16]} Rc1 {[%emt 0:00:39]} 60. Kb3 {[%emt 0:00:10]} 1-0

[Event "69th RUS-ch Women Higher League 2019"]
[Site "Yaroslavl"]
[Date "2019.06.28"]
[Round "2.8"]
[White "Belenkaya, Dina"]
[Black "Shafigullina, Zarina"]
[Result "1/2-1/2"]
[ECO "B31"]
[WhiteElo "2321"]
[BlackElo "2240"]
[Annotator "NA"]
[PlyCount "166"]
[EventDate "2019.06.27"]
[EventType "swiss"]
[EventCountry "RUS"]
[SourceTitle "playchess.com"]
[Source "ChessBase"]
[SourceQuality "1"]
[TimeControl "40/5400+30:1800+30"]

1. e4 {[%emt 0:01:23]} c5 {[%emt 0:00:00]} 2. Nf3 {[%emt 0:00:05]} Nc6 {[%emt 0:00:00]} 3. Bb5 {[%emt 0:00:13]} g6 {[%emt 0:00:00]} 4. O-O {[%emt 0:00:10]} Bg7 {[%emt 0:00:16]} 5. Re1 {[%emt 0:00:41]} Nf6 {[%emt 0:00:47]} 6. e5 {[%emt 0:00:46]} Nd5 {[%emt 0:00:16]} 7. Nc3 {[%emt 0:00:35]} Nc7 {[%emt 0:01:27]} 8. Bxc6 {[%emt 0:00:35]} dxc6 {[%emt 0:00:07]} 9. Ne4 {[%emt 0:00:33]} b6 {[%emt 0:00:15]} 10. Nf6+ {[%emt 0:00:42]} Kf8 {[%emt 0:00:06]} 11. Ne4 {[%emt 0:00:19]} Bg4 {[%emt 0:00:41]} 12. d3 {[%emt 0:00:34]} Ne6 {[%emt 0:01:38]} 13. Neg5 {[%emt 0:00:44]} Nxg5 {[%emt 0:08:14]} 14. Bxg5 {[%emt 0:00:12]} Qd5 {[%emt 0:01:09]} 15. Re4 {[%emt 0:00:57]} Bf5 {[%emt 0:01:53]} 16. Ra4 {[%emt 0:00:43]} h6 {[%emt 0:09:28]} 17. Be3 {[%emt 0:04:00]} Kg8 {[%emt 0:10:01]} 18. d4 {[%emt 0:11:56]} cxd4 {[%emt 0:14:47]} 19. Rxd4 {[%emt 0:12:52]} Qe6 {[%emt 0:00:13]} 20. h3 {[%emt 0:04:13]} c5 {[%emt 0:01:53]} 21. Rd2 {[%emt 0:07:39]} Be4 {[%emt 0:04:38]} 22. c3 {[%emt 0:07:21]} Qf5 {[%emt 0:12:02]} 23. Nh4 {[%emt 0:05:03]} Qxe5 {[%emt 0:01:31]} 24. f4 {[%emt 0:01:33]} Qe6 {[%emt 0:02:58]} 25. Nf3 {[%emt 0:06:50]} Kh7 {[%emt 0:04:14]} 26. a4 {[%emt 0:05:18]} Bc6 {[%emt 0:02:32]} 27. Bf2 {[%emt 0:01:20]} Qe4 {[%emt 0:01:10]} 28. Bg3 {[%emt 0:03:05]} Qe3+ {[%emt 0:00:39]} 29. Kh2 {[%emt 0:00:43]} Bxf3 {[%emt 0:02:51]} 30. gxf3 {[%emt 0:00:04]} Bf6 {[%emt 0:06:59]} 31. Rd7 {[%emt 0:01:47]} Kg7 {[%emt 0:05:35]} 32. a5 {[%emt 0:00:41]} g5 {[%emt 0:06:10]} 33. Ra4 {[%emt 0:04:53]} Qe6 {[%emt 0:00:35]} 34. Re4 {[%emt 0:01:35]} Qa2 {[%emt 0:00:16]} 35. Re2 {[%emt 0:02:55]} Qxa5 {[%emt 0:00:47]} 36. Qd5 {[%emt 0:00:54]} Qb5 {[%emt 0:01:07]} 37. c4 {[%emt 0:02:29]} Qb3 {[%emt 0:00:13]} 38. f5 {[%emt 0:05:17]} Rhf8 {[%emt 0:00:38]} 39. Be5 {[%emt 0:01:55]} Bxe5+ {[%emt 0:00:36]} 40. Qxe5+ {[%emt 0:00:00]} Kg8 {[%emt 0:00:00]} 41. Qd5 {[%emt 0:16:59]} b5 {[%emt 0:02:42]} 42. Rexe7 {[%emt 0:03:03]} Qxc4 {[%emt 0:04:22]} 43. Rxf7 {[%emt 0:06:31]} Rxf7 {[%emt 0:00:41]} 44. Qxa8+ {[%emt 0:00:06]} Kg7 {[%emt 0:00:23]} 45. Qxa7 {[%emt 0:07:56]} Rxd7 {[%emt 0:03:41]} 46. Qxd7+ {[%emt 0:00:02]} Kf6 {[%emt 0:00:13]} 47. Qh7 {[%emt 0:04:06]} Qe2+ {[%emt 0:05:51]} 48. Kg1 {[%emt 0:00:03]} Qd1+ {[%emt 0:01:37]} 49. Kg2 {[%emt 0:00:11]} Qc2+ {[%emt 0:01:19]} 50. Kg3 {[%emt 0:00:12]} Qxf5 {[%emt 0:00:40]} 51. Qh8+ {[%emt 0:01:30]} Kf7 {[%emt 0:01:03]} 52. Kg2 {[%emt 0:00:42]} Qf6 {[%emt 0:01:52]} 53. Qh7+ {[%emt 0:00:15]} Ke6 {[%emt 0:00:56]} 54. b3 {[%emt 0:00:32]} Kd6 {[%emt 0:01:10]} 55. Qg8 {[%emt 0:00:39]} b4 {[%emt 0:01:19]} 56. Kf2 {[%emt 0:00:40]} Qe6 {[%emt 0:01:08]} 57. Qd8+ {[%emt 0:00:13]} Ke5 {[%emt 0:00:33]} 58. Qh8+ {[%emt 0:00:31]} Kd5 {[%emt 0:00:54]} 59. Qd8+ {[%emt 0:00:07]} Qd6 {[%emt 0:00:46]} 60. Qg8+ {[%emt 0:00:57]} Ke5 {[%emt 0:01:11]} 61. Qg7+ {[%emt 0:00:35]} Qf6 {[%emt 0:00:40]} 62. Qg8 {[%emt 0:00:57]} Qd6 {[%emt 0:00:51]} 63. Qg7+ {[%emt 0:00:13]} Qf6 {[%emt 0:01:21]} 64. Qg8 {[%emt 0:00:14]} Qe6 {[%emt 0:00:11]} 65. Qh8+ {[%emt 0:00:24]} Kf5 {[%emt 0:02:36]} 66. Qf8+ {[%emt 0:01:05]} Kg6 {[%emt 0:00:10]} 67. Qxc5 {[%emt 0:00:21]} Qxb3 {[%emt 0:00:11]} 68. Qc6+ {[%emt 0:00:12]} Kf5 {[%emt 0:01:45]} 69. Qc5+ {[%emt 0:00:39]} Kf6 {[%emt 0:01:26]} 70. Qd6+ {[%emt 0:00:06]} Kg7 {[%emt 0:00:34]} 71. Qe7+ {[%emt 0:00:34]} Kg6 {[%emt 0:00:16]} 72. Qe8+ {[%emt 0:00:24]} Qf7 {[%emt 0:00:36]} 73. Qe4+ {[%emt 0:00:09]} Qf5 {[%emt 0:00:07]} 74. Qe8+ {[%emt 0:00:56]} Kg7 {[%emt 0:00:44]} 75. Qe7+ {[%emt 0:00:22]} Kg8 {[%emt 0:00:11]} 76. Qe8+ {[%emt 0:01:05]} Qf8 {[%emt 0:00:11]} 77. Qe6+ {[%emt 0:00:20]} Kg7 {[%emt 0:00:23]} 78. Qd7+ {[%emt 0:00:28]} Kf6 {[%emt 0:00:56]} 79. Qd4+ {[%emt 0:00:10]} Kf7 {[%emt 0:00:34]} 80. Qc4+ {[%emt 0:00:20]} Kg6 {[%emt 0:00:19]} 81. Qe4+ {[%emt 0:00:13]} Qf5 {[%emt 0:00:50]} 82. Qe8+ {[%emt 0:00:04]} Qf7 {[%emt 0:00:04]} 83. Qe4+ {[%emt 0:00:14]} Qf5 {[%emt 0:00:21]} 1/2-1/2

[Event "69th RUS-ch Women Higher League 2019"]
[Site "Yaroslavl"]
[Date "2019.06.28"]
[Round "2.9"]
[White "Mukhina, Jana"]
[Black "Maltsevskaya, Aleksandra"]
[Result "0-1"]
[ECO "A50"]
[WhiteElo "2090"]
[BlackElo "2316"]
[Annotator "NA"]
[PlyCount "66"]
[EventDate "2019.06.27"]
[EventType "swiss"]
[EventCountry "RUS"]
[SourceTitle "playchess.com"]
[Source "ChessBase"]
[SourceQuality "1"]
[TimeControl "40/5400+30:1800+30"]

1. d4 {[%emt 0:00:00]} Nf6 {[%emt 0:00:33]} 2. c4 {[%emt 0:00:00]} b6 {[%emt 0:01:04]} 3. Nc3 {[%emt 0:03:12]} Bb7 {[%emt 0:00:12]} 4. Qc2 {[%emt 0:02:30]} e6 {[%emt 0:00:41]} 5. e4 {[%emt 0:05:59]} d5 {[%emt 0:12:35]} 6. cxd5 {[%emt 0:13:53]} exd5 {[%emt 0:00:43]} 7. e5 {[%emt 0:00:33]} Ne4 {[%emt 0:07:43]} 8. Bb5+ {[%emt 0:05:25]} Nd7 {[%emt 0:10:39]} 9. Nxe4 {[%emt 0:15:52]} dxe4 {[%emt 0:00:07]} 10. Bc6 {[%emt 0:00:10]} Bb4+ {[%emt 0:03:41]} 11. Kf1 {[%emt 0:00:13]} Bxc6 {[%emt 0:09:24]} 12. Qxc6 {[%emt 0:00:02]} O-O {[%emt 0:00:08]} 13. Be3 {[%emt 0:05:14]} b5 {[%emt 0:09:39]} 14. Qxe4 {[%emt 0:06:45]} Nb6 {[%emt 0:02:26]} 15. Ne2 {[%emt 0:09:29]} Nd5 {[%emt 0:08:14]} 16. Nf4 {[%emt 0:03:35]} Nxf4 {[%emt 0:01:04]} 17. Bxf4 {[%emt 0:01:28]} f6 {[%emt 0:04:35]} 18. Rc1 {[%emt 0:08:29]} fxe5 {[%emt 0:11:44]} 19. Bxe5 {[%emt 0:00:24]} Bd6 {[%emt 0:00:18]} 20. Qd5+ {[%emt 0:01:48]} Kh8 {[%emt 0:00:16]} 21. h4 {[%emt 0:05:22]} Bxe5 {[%emt 0:08:57]} 22. Qxe5 {[%emt 0:00:55]} Re8 {[%emt 0:00:06]} 23. Qc5 {[%emt 0:07:27]} Qf6 {[%emt 0:01:14]} 24. Rh3 {[%emt 0:01:50]} h6 {[%emt 0:02:20]} 25. Re1 {[%emt 0:01:12]} Rxe1+ {[%emt 0:02:56]} 26. Kxe1 {[%emt 0:00:02]} Qg6 {[%emt 0:00:07]} 27. Qc1 {[%emt 0:01:08]} Qxg2 {[%emt 0:00:18]} 28. Qe3 {[%emt 0:00:28]} Qg4 {[%emt 0:01:36]} 29. Kd2 {[%emt 0:00:27]} Rd8 {[%emt 0:00:09]} 30. f4 {[%emt 0:00:32]} c5 {[%emt 0:00:50]} 31. Qg3 {[%emt 0:00:33]} Rxd4+ {[%emt 0:00:07]} 32. Kc3 {[%emt 0:00:15]} b4+ {[%emt 0:00:25]} 33. Kc2 {[%emt 0:00:42]} Qd1# {[%emt 0:00:05]} 0-1

[Event "69th RUS-ch Women Higher League 2019"]
[Site "Yaroslavl"]
[Date "2019.06.28"]
[Round "2.10"]
[White "Guseva, Marina"]
[Black "Loskutova, Viktoriya"]
[Result "1-0"]
[ECO "E20"]
[WhiteElo "2379"]
[BlackElo "2019"]
[Annotator "NA"]
[PlyCount "67"]
[EventDate "2019.06.27"]
[EventType "swiss"]
[EventCountry "RUS"]
[SourceTitle "playchess.com"]
[Source "ChessBase"]
[SourceQuality "1"]
[TimeControl "40/5400+30:1800+30"]

1. d4 {[%emt 0:02:08]} Nf6 {[%emt 0:00:00]} 2. c4 {[%emt 0:00:04]} e6 {[%emt 0:00:00]} 3. Nc3 {[%emt 0:00:04]} Bb4 {[%emt 0:00:00]} 4. f3 {[%emt 0:00:03]} c5 {[%emt 0:00:00]} 5. d5 {[%emt 0:00:04]} d6 {[%emt 0:00:00]} 6. e4 {[%emt 0:00:05]} b5 {[%emt 0:00:04]} 7. Bd3 {[%emt 0:00:08]} O-O {[%emt 0:05:56]} 8. Nge2 {[%emt 0:00:04]} exd5 {[%emt 0:08:51]} 9. cxd5 {[%emt 0:00:17]} Nbd7 {[%emt 0:24:56]} 10. Bxb5 {[%emt 0:10:30]} Qb6 {[%emt 0:05:10]} 11. O-O {[%emt 0:25:43]} Ne5 {[%emt 0:06:02]} 12. Kh1 {[%emt 0:08:24]} a6 {[%emt 0:23:47]} 13. Bd3 {[%emt 0:08:20]} c4 {[%emt 0:07:11]} 14. Bc2 {[%emt 0:00:49]} Re8 {[%emt 0:06:41]} 15. Na4 {[%emt 0:08:23]} Qa7 {[%emt 0:04:41]} 16. Nd4 {[%emt 0:00:45]} Bd7 {[%emt 0:02:00]} 17. Be3 {[%emt 0:06:46]} Bxa4 {[%emt 0:01:19]} 18. Bxa4 {[%emt 0:00:05]} Rec8 {[%emt 0:00:12]} 19. Nf5 {[%emt 0:06:32]} Bc5 {[%emt 0:01:29]} 20. Bxc5 {[%emt 0:00:39]} Rxc5 {[%emt 0:00:15]} 21. Qd2 {[%emt 0:08:16]} Qc7 {[%emt 0:00:18]} 22. Qg5 {[%emt 0:02:37]} Ng6 {[%emt 0:00:06]} 23. h4 {[%emt 0:00:39]} h5 {[%emt 0:00:38]} 24. b4 {[%emt 0:04:29]} cxb3 {[%emt 0:00:31]} 25. Bxb3 {[%emt 0:00:08]} a5 {[%emt 0:00:23]} 26. Ba4 {[%emt 0:00:24]} Rb8 {[%emt 0:00:34]} 27. Rab1 {[%emt 0:00:24]} Rxb1 {[%emt 0:01:37]} 28. Rxb1 {[%emt 0:00:04]} Nh7 {[%emt 0:00:18]} 29. Qg3 {[%emt 0:01:42]} Rc1+ {[%emt 0:00:44]} 30. Rxc1 {[%emt 0:00:04]} Qxc1+ {[%emt 0:00:03]} 31. Kh2 {[%emt 0:00:03]} Qa3 {[%emt 0:00:08]} 32. Be8 {[%emt 0:05:55]} Nf6 {[%emt 0:00:58]} 33. Qxd6 {[%emt 0:00:50]} Qxa2 {[%emt 0:00:59]} 34. Bxf7+ {[%emt 0:00:32]} 1-0